bitfinex-derivatives/quotes_BTCF0:USTF0_20260104
["timestamp","ask_amount","ask_price","bid_price","bid_amount"]
[1767569031827,0.02266505,91565.0,91541.0,0.01786949]
[1767569032031,0.02266505,91565.0,91532.0,0.2912]
[1767569032032,0.09385286,91566.0,91543.0,0.01786949]
[1767569032233,0.12651005,91573.0,91551.0,0.01786949]
[1767569032432,0.103845,91573.0,91551.0,0.00186949]
[1767569032631,0.010924,91576.0,91560.0,0.09456017]
[1767569033026,0.02266505,91588.0,91560.0,0.09456017]
[1767569033220,0.010923,91587.0,91562.0,0.010926]
[1767569033428,0.09288,91586.0,91570.0,0.09456017]
[1767569033730,0.09288,91586.0,91565.0,0.09861386]
[1767569034136,0.01310668,91589.0,91570.0,0.09861386]
[1767569034324,0.010923,91584.0,91570.0,0.09861386]
[1767569034528,0.010923,91584.0,91561.0,0.1036688]
[1767569034723,0.010924,91581.0,91563.0,0.09861386]
[1767569035838,0.010924,91576.0,91557.0,0.09861386]
[1767569036043,0.03358905,91576.0,91557.0,0.09861386]
[1767569036535,0.010925,91574.0,91557.0,0.09861386]
[1767569036738,0.02266505,91573.0,91555.0,0.09288]
[1767569037128,0.02266505,91573.0,91554.0,0.09861386]
[1767569037333,0.010925,91574.0,91554.0,0.09861386]
[1767569037528,0.010925,91574.0,91554.0,0.19149386]
[1767569037734,0.010925,91574.0,91555.0,0.09861386]
[1767569039438,0.010925,91574.0,91555.0,0.10178715]
[1767569040245,0.010925,91571.0,91555.0,0.08461386]
[1767569040934,0.03359005,91575.0,91555.0,0.08461386]
[1767569041331,0.02266505,91575.0,91555.0,0.08461386]
[1767569041540,0.010925,91571.0,91555.0,0.08461386]
[1767569044657,0.02415388,91574.0,91555.0,0.08461386]
[1767569046557,0.10477686,91576.0,91555.0,0.08461386]
[1767569046558,0.03507888,91573.0,91555.0,0.08461386]
[1767569047055,0.1218568,91571.0,91553.0,0.09288]
[1767569047358,0.09288,91578.0,91549.0,0.09421718]
[1767569047359,0.03507888,91567.0,91549.0,0.09421718]
[1767569047560,0.03507988,91564.0,91545.0,0.09288]
[1767569047951,0.02415388,91564.0,91545.0,0.07888]
[1767569048257,0.02415388,91564.0,91545.0,0.17309718]
[1767569048458,0.010926,91559.0,91545.0,0.17309718]
[1767569048953,0.010926,91559.0,91534.0,0.010929]
[1767569048954,0.02415388,91559.0,91535.0,0.09421718]
[1767569049155,0.03507988,91558.0,91538.0,0.09288]
[1767569049355,0.010927,91555.0,91538.0,0.09288]
[1767569049561,0.010927,91552.0,91535.0,0.09421718]
[1767569049854,0.02415388,91553.0,91530.0,0.19113918]
[1767569050058,0.010928,91550.0,91530.0,0.19113918]
[1767569050650,0.010928,91547.0,91530.0,0.09421718]
[1767569050858,0.02415388,91550.0,91530.0,0.09421718]
[1767569051454,0.010928,91548.0,91530.0,0.0979828]
[1767569052355,0.010928,91543.0,91530.0,0.09421718]
[1767569052562,0.02415388,91549.0,91530.0,0.09421718]
[1767569053459,0.02415388,91554.0,91530.0,0.09781388]
[1767569054261,0.02415388,91553.0,91530.0,0.09781388]
[1767569054467,0.09464328,91550.0,91530.0,0.09781388]
[1767569054854,0.010928,91547.0,91530.0,0.09781388]
[1767569055163,0.09288,91557.0,91528.0,0.00312]
[1767569055164,0.09464328,91540.0,91528.0,0.00312]
[1767569055360,0.18756328,91540.0,91528.0,0.00312]
[1767569055560,0.09292,91540.0,91528.0,0.00312]
[1767569055767,0.09292,91540.0,91524.0,0.08933718]
[1767569056158,0.00012474,91539.0,91524.0,0.08933718]
[1767569057163,0.00012474,91539.0,91524.0,0.09257451]
[1767569058363,0.00012474,91539.0,91525.0,0.00300082]
[1767569058673,0.00012474,91539.0,91526.0,0.097218]
[1767569063472,0.00012474,91539.0,91526.0,0.084218]
[1767569063673,0.01105374,91539.0,91522.0,0.00159988]
[1767569064265,0.01105374,91539.0,91516.0,0.09292]
[1767569064266,0.02415388,91538.0,91517.0,0.00135394]
[1767569064663,0.02415388,91538.0,91518.0,0.00162556]
[1767569064870,0.00012474,91539.0,91518.0,0.00162556]
[1767569065468,0.00012474,91539.0,91520.0,0.09584274]
[1767569065966,0.02415388,91538.0,91520.0,0.09421718]
[1767569066173,0.010929,91534.0,91520.0,0.09421718]
[1767569066883,0.02415388,91533.0,91514.0,0.09421718]
[1767569067269,0.02415388,91533.0,91514.0,0.09525548]
[1767569067471,0.02415388,91533.0,91515.0,0.09525548]
[1767569068372,0.02415388,91533.0,91510.0,0.103852]
[1767569068373,0.010929,91536.0,91519.0,0.00068327]
[1767569068573,0.010929,91536.0,91519.0,0.09490045]
[1767569069677,0.09782766,91539.0,91519.0,0.09490045]
[1767569069979,0.12198154,91539.0,91519.0,0.09490045]
[1767569070575,0.010929,91538.0,91519.0,0.09490045]
[1767569071072,0.010929,91538.0,91519.0,0.08590045]
[1767569071877,0.0210436,91538.0,91519.0,0.08590045]
[1767569072065,0.010929,91534.0,91519.0,0.08590045]
[1767569072876,0.010929,91534.0,91511.0,0.010932]
[1767569073076,0.01093,91532.0,91511.0,0.09041094]
[1767569073568,0.0319726,91535.0,91511.0,0.09041094]
[1767569073766,0.010929,91535.0,91511.0,0.09041094]
[1767569074482,0.01093,91531.0,91511.0,0.09041094]
[1767569075278,0.09292,91530.0,91511.0,0.09041094]
[1767569076081,0.10385,91530.0,91511.0,0.09041094]
[1767569076577,0.19853636,91530.0,91511.0,0.09041094]
[1767569078779,0.19853636,91530.0,91511.0,0.06841094]
[1767569081691,0.22073391,91530.0,91511.0,0.06841094]
[1767569082374,0.03312755,91528.0,91511.0,0.06841094]
[1767569082581,0.09468636,91521.0,91505.0,0.09826607]
[1767569082777,0.02219755,91524.0,91505.0,0.09826607]
[1767569083280,0.09480379,91526.0,91505.0,0.09826607]
[1767569083479,0.03312755,91528.0,91505.0,0.09826607]
[1767569083675,0.01093,91525.0,91505.0,0.09826607]
[1767569083879,0.02219755,91524.0,91505.0,0.09826607]
[1767569084074,0.09468636,91520.0,91505.0,0.09826607]
[1767569084390,0.000127,91519.0,91505.0,0.09826607]
[1767569084590,0.02219755,91515.0,91496.0,0.05892335]
[1767569084797,0.02219755,91515.0,91494.0,0.09292]
[1767569084980,0.02219755,91515.0,91494.0,0.19118607]
[1767569085181,0.02219755,91515.0,91495.0,0.09826607]
[1767569085678,0.010931,91516.0,91495.0,0.09826607]
[1767569086076,0.010932,91515.0,91495.0,0.09826607]
[1767569086488,0.010932,91515.0,91495.0,0.09426607]
[1767569086993,0.02219755,91517.0,91495.0,0.09426607]
[1767569087193,0.010931,91516.0,91495.0,0.09426607]
[1767569087795,0.02219755,91517.0,91495.0,0.09426607]
[1767569088986,0.09292,91518.0,91495.0,0.09426607]
[1767569089183,0.11511755,91518.0,91495.0,0.09426607]
[1767569090200,0.010932,91516.0,91495.0,0.09426607]
[1767569090696,0.03312955,91516.0,91495.0,0.09426607]
[1767569090878,0.02219755,91516.0,91495.0,0.09426607]
[1767569091084,0.02219755,91516.0,83425.0,0.05]
[1767569091085,0.02219755,91502.0,91470.0,0.05892335]
[1767569091280,0.02219755,91500.0,91467.0,0.05892335]
[1767569091482,0.4,91515.0,91463.0,0.09296]
[1767569091483,0.12793534,91496.0,91464.0,0.05892335]
[1767569091689,0.09296,91495.0,91472.0,0.000842]
[1767569091886,0.010935,91484.0,91469.0,0.00302855]
[1767569092087,0.02219755,91486.0,91469.0,0.00218655]
[1767569092298,0.02229492,91485.0,91469.0,0.00218655]
[1767569092492,0.09296,91484.0,91469.0,0.00218655]
[1767569092792,0.09296,91484.0,91465.0,0.000842]
[1767569093792,0.103895,91484.0,91465.0,0.09910807]
[1767569093991,0.103895,91484.0,91465.0,0.09826607]
[1767569094195,0.12609255,91484.0,91465.0,0.09826607]
[1767569094596,0.12609255,91484.0,91465.0,0.08226607]
[1767569095796,0.010936,91481.0,91465.0,0.08226607]
[1767569096195,0.010936,91481.0,91456.0,0.09296]
[1767569096401,0.12793734,91481.0,91456.0,0.09296]
[1767569096699,0.12793734,91481.0,91458.0,0.09826607]
[1767569100505,0.103895,91484.0,91458.0,0.10920407]
[1767569100705,0.12496458,91484.0,91458.0,0.09826607]
[1767569100905,0.21515476,91484.0,91458.0,0.09826607]
[1767569101406,0.12011346,91513.0,91474.0,0.09880408]
[1767569101407,0.11125976,91503.0,91474.0,0.09880408]
[1767569101706,0.09019018,91496.0,91474.0,0.09880408]
[1767569102001,0.11125976,91482.0,91462.0,0.09880408]
[1767569102204,0.11125976,91482.0,91462.0,0.08780408]
[1767569102403,0.09019018,91482.0,91462.0,0.08780408]
[1767569102605,0.12228093,91481.0,91459.0,0.09296]
[1767569103100,0.11134493,91481.0,91460.0,0.010938]
[1767569103492,0.09027535,91481.0,91460.0,0.010938]
[1767569103897,0.09027535,91481.0,91462.0,0.010938]
[1767569104802,0.11125976,91479.0,91459.0,0.09296]
[1767569105007,0.10112618,91476.0,91459.0,0.09296]
[1767569105307,0.09019018,91476.0,91459.0,0.09296]
[1767569105502,0.11125976,91476.0,91459.0,0.09296]
[1767569106601,0.11125976,91472.0,91452.0,0.09296]
[1767569106804,0.11125976,91469.0,91449.0,0.09296]
[1767569107207,0.11125976,91469.0,91450.0,0.010939]
[1767569107411,0.09019018,91469.0,91450.0,0.010939]
[1767569107814,0.09019018,91467.0,91449.0,0.09296]
[1767569108004,0.09019018,91465.0,91444.0,0.01094]
[1767569108511,0.09019018,91463.0,91444.0,0.01094]
[1767569108705,0.11125976,91459.0,91441.0,0.09296]
[1767569108906,0.11125976,91458.0,91439.0,0.00218726]
[1767569109206,0.09296,91460.0,91439.0,0.00218726]
[1767569109207,0.11125976,91457.0,91439.0,0.00218726]
[1767569109607,0.11125976,91455.0,91439.0,0.00218726]
[1767569109811,0.11125976,91453.0,91439.0,0.00218726]
[1767569110008,0.11125976,91453.0,91433.0,0.09296]
[1767569110209,0.09019018,91453.0,91433.0,0.19176408]
[1767569110513,0.11125976,91458.0,91434.0,0.09880408]
[1767569111413,0.09296,91460.0,91434.0,0.09880408]
[1767569111414,0.11125976,91452.0,91434.0,0.010941]
[1767569111711,0.11125976,91451.0,91434.0,0.010941]
[1767569111907,0.11125976,91450.0,91434.0,0.010941]
[1767569112108,0.02106958,91445.0,91430.0,0.00014042]
[1767569112314,0.11125976,91445.0,91430.0,0.00014042]
[1767569112713,0.093,91446.0,91420.0,0.010943]
[1767569112714,0.11125976,91438.0,91420.0,0.010943]
[1767569113116,0.11125976,91438.0,91423.0,0.010943]
[1767569113413,0.09019018,91456.0,91437.0,0.010941]
[1767569113608,0.09019018,91454.0,91437.0,0.010941]
[1767569113917,0.000116,91453.0,91437.0,0.010941]
[1767569114214,0.000116,91453.0,91440.0,0.010941]
[1767569115310,0.000116,91453.0,91443.0,0.01094]
[1767569117214,0.000116,91453.0,91439.0,0.010941]
[1767569117518,0.000116,91453.0,91443.0,0.01094]
[1767569117716,0.000116,91453.0,91435.0,0.09880408]
[1767569119122,0.000116,91453.0,91442.0,0.01094]
[1767569120820,0.000116,91453.0,91445.0,0.01094]
[1767569121825,0.000116,91453.0,91435.0,0.09880408]
[1767569122027,0.11125976,91445.0,91423.0,0.093]
[1767569122333,0.11125976,91445.0,91423.0,0.19180408]
[1767569122535,0.11125976,91445.0,91424.0,0.09880408]
[1767569122836,0.09019018,91445.0,91424.0,0.09880408]
[1767569123033,0.09019018,91445.0,91435.0,0.010941]
[1767569123222,0.09019018,91451.0,91440.0,0.010941]
[1767569123424,0.09019018,91449.0,91440.0,0.010941]
[1767569125439,0.09019018,91449.0,91440.0,0.005941]
[1767569126440,0.010937,91467.0,91449.0,0.010939]
[1767569126637,0.02341248,91466.0,91449.0,0.010939]
[1767569126831,0.11641248,91465.0,91449.0,0.010939]
[1767569127037,0.02341248,91464.0,91449.0,0.010939]
[1767569127233,0.02341248,91463.0,91449.0,0.010939]
[1767569127530,0.2124,91473.0,91435.0,0.010941]
[1767569127531,0.010934,91492.0,91460.0,0.010938]
[1767569127730,0.093,91473.0,91457.0,0.01627218]
[1767569127939,0.093,91475.0,91458.0,0.01627218]
[1767569128643,5.514e-05,91474.0,91458.0,0.01627218]
[1767569128842,5.514e-05,91474.0,91463.0,0.010938]
[1767569129444,5.514e-05,91474.0,91461.0,0.010938]
[1767569130747,0.09019018,91481.0,91449.0,0.093]
[1767569130748,0.09146404,91487.0,91469.0,0.02179541]
[1767569131048,0.10240004,91482.0,91456.0,0.02179541]
[1767569131339,0.09146404,91482.0,91460.0,0.02179541]
[1767569131540,0.09146404,91488.0,91471.0,0.010937]
[1767569131940,0.093,91487.0,91471.0,0.010937]
[1767569133144,0.093,91487.0,91471.0,0.006937]
[1767569133646,0.093,91487.0,91474.0,0.010936]
[1767569134344,0.010934,91494.0,91474.0,0.02179541]
[1767569134345,0.11389408,91494.0,91474.0,0.02179541]
[1767569134544,0.02243004,91498.0,91485.0,0.010935]
[1767569134845,0.093,91495.0,91485.0,0.010935]
[1767569135639,0.093,91495.0,91481.0,0.010936]
[1767569137248,0.11861733,91497.0,91481.0,0.010936]
[1767569137442,0.00218583,91499.0,91480.0,0.0239244]
[1767569137645,0.09518583,91499.0,91480.0,0.0239244]
[1767569137846,0.09518583,91499.0,91484.0,0.010935]
[1767569138148,0.11861733,91494.0,91480.0,0.010936]
[1767569138354,0.09667177,91487.0,91476.0,0.010936]
[1767569138545,0.09667177,91487.0,91479.0,0.010936]
[1767569138855,0.11861733,91492.0,91479.0,0.010936]
[1767569140849,0.11861733,91492.0,91471.0,0.0239244]
[1767569141246,0.11861733,91492.0,91470.0,0.083936]
[1767569141247,0.11861733,91497.0,91486.0,0.010935]
[1767569141460,0.09518583,91499.0,91475.0,0.11517589]
[1767569141461,0.093,91498.0,91490.0,0.010934]
[1767569141649,0.093,91498.0,91486.0,0.010935]
[1767569141844,0.093,91498.0,91475.0,0.0239244]
[1767569141845,0.02194556,91514.0,91491.0,0.09125149]
[1767569142151,0.093,91513.0,91491.0,0.09125149]
[1767569142542,0.093,91513.0,91498.0,0.010934]
[1767569142745,0.093,91513.0,91501.0,0.010933]
[1767569144053,0.21161733,91513.0,91499.0,0.010933]
[1767569144254,0.11861733,91512.0,91499.0,0.010933]
[1767569146747,0.02194556,91508.0,91499.0,0.010933]
[1767569148656,0.093,91513.0,91501.0,0.010933]
[1767569148852,0.09296,91517.0,91509.0,0.010932]
[1767569149058,0.09296,91518.0,91509.0,0.010932]
[1767569149448,0.37196,91548.0,91508.0,0.11517589]
[1767569149650,0.676809,91538.0,91509.0,0.11517589]
[1767569149951,0.010929,91533.0,91512.0,0.010932]
[1767569150844,0.02194556,91527.0,91512.0,0.010932]
[1767569151046,0.02194556,91511.0,91503.0,0.010933]
[1767569151347,0.02194556,91515.0,91503.0,0.010933]
[1767569151854,0.09667177,91537.0,91518.0,0.010931]
[1767569152053,0.09667177,91535.0,91518.0,0.010931]
[1767569152249,0.09296,91534.0,91518.0,0.010931]
[1767569152449,0.09667177,91533.0,91518.0,0.010931]
[1767569152948,0.09667177,91533.0,91520.0,0.010931]
[1767569153150,0.09667177,91533.0,91517.0,0.010931]
[1767569153344,0.09667177,91533.0,91510.0,0.010932]
[1767569153750,0.09667177,91531.0,91510.0,0.010932]
[1767569153952,0.09296,91534.0,91504.0,0.09125149]
[1767569153953,0.02194556,91517.0,91506.0,0.010933]
[1767569154261,0.02194556,91517.0,91508.0,0.010932]
[1767569154751,0.02194556,91517.0,91505.0,0.010933]
[1767569155056,0.11838086,91540.0,91473.0,0.05857341]
[1767569155057,0.02194556,91506.0,91473.0,0.05857341]
[1767569155251,0.02194556,91496.0,91475.0,0.010936]
[1767569155453,0.02194556,91496.0,91474.0,0.20813589]
[1767569155454,0.02194556,91493.0,91474.0,0.09125149]
[1767569155750,0.02194556,91493.0,91471.0,0.010937]
[1767569155751,0.02194556,91488.0,91471.0,0.103897]
[1767569155954,0.02194556,91486.0,91471.0,0.103897]
[1767569156450,0.02194556,91486.0,91471.0,0.09296]
[1767569156643,0.02194556,91486.0,91471.0,0.103897]
[1767569156848,0.09667177,91487.0,91471.0,0.103897]
[1767569157650,0.09667177,91487.0,91469.0,0.00218655]
[1767569157861,0.09667177,91493.0,91472.0,0.0239244]
[1767569158249,0.09667177,91493.0,91477.0,0.010936]
[1767569160554,0.09180411,91492.0,91477.0,0.010936]
[1767569160758,0.09296,91491.0,91477.0,0.13612764]
[1767569160955,0.09296,91491.0,91477.0,0.10961507]
[1767569161153,0.09296,91491.0,91477.0,0.010936]
[1767569161853,0.02624028,91497.0,91472.0,0.02651257]
[1767569162059,0.02624028,91505.0,91483.0,0.03744757]
[1767569162245,0.02624028,91505.0,91486.0,0.010935]
[1767569162445,0.09296,91504.0,91486.0,0.03744757]
[1767569163259,0.09296,91504.0,91486.0,0.010935]
[1767569163449,0.21100439,91504.0,91486.0,0.010935]
[1767569164055,0.21100439,91504.0,91483.0,0.09861407]
[1767569164254,0.21100439,91504.0,91486.0,0.010935]
[1767569165753,0.11804439,91504.0,91486.0,0.010935]
[1767569165961,0.09296,91503.0,91486.0,0.010935]
[1767569166659,0.11920028,91503.0,91486.0,0.010935]
[1767569168465,0.11920028,91503.0,91483.0,0.09861407]
[1767569168666,0.09296,91503.0,91494.0,0.010934]
[1767569169761,0.02624028,91507.0,91486.0,0.02651257]
[1767569169966,0.09180411,91510.0,91489.0,0.12519164]
[1767569169967,0.09296,91506.0,91489.0,0.12519164]
[1767569170967,0.09296,91506.0,91496.0,0.010934]
[1767569171162,0.02624028,91509.0,91498.0,0.010934]
[1767569171470,0.09296,91509.0,91491.0,0.12519164]
[1767569171671,0.09296,91509.0,91491.0,0.11919164]
[1767569171870,0.09296,91509.0,91499.0,0.010933]
[1767569175363,0.09296,91509.0,91496.0,0.010934]
[1767569175573,0.11920028,91509.0,91496.0,0.010934]
[1767569175966,0.09296,91509.0,91496.0,0.010934]
[1767569177869,0.02624028,91512.0,91491.0,0.11919164]
[1767569178069,0.02624028,91518.0,91502.0,0.010933]
[1767569178270,0.09296,91517.0,91507.0,0.010933]
[1767569178967,0.11920028,91517.0,91507.0,0.010933]
[1767569179370,0.11920028,91517.0,91498.0,0.02444557]
[1767569179765,0.02624028,91516.0,91504.0,0.010933]
[1767569180070,2.8e-07,91516.0,91496.0,0.03744657]
[1767569180274,2.8e-07,91516.0,91508.0,0.010932]
[1767569181172,0.09180411,91516.0,91496.0,0.02651257]
[1767569181368,0.09180411,91516.0,91504.0,0.010933]
[1767569181568,0.09180411,91516.0,91506.0,0.010933]
[1767569183973,0.09296,91517.0,91499.0,0.010933]
[1767569183974,0.02624028,91513.0,91499.0,0.010933]
[1767569184159,0.09471913,91510.0,91499.0,0.010933]
[1767569184363,0.09471913,91510.0,91502.0,0.010933]
[1767569184670,0.09471913,91510.0,91498.0,0.010934]
[1767569185673,0.12095941,91510.0,91498.0,0.010934]
[1767569185872,0.02624028,91507.0,91495.0,0.010934]
[1767569186173,0.11804439,91505.0,91495.0,0.010934]
[1767569186372,0.11804439,91505.0,91490.0,0.09296]
[1767569186669,0.09296,91517.0,91504.0,0.010933]
[1767569186874,0.09296,91517.0,91495.0,0.12519164]
[1767569187069,0.0261103,91516.0,91495.0,0.11619164]
[1767569187266,0.09471913,91530.0,91501.0,0.09867907]
[1767569187267,0.0261103,91524.0,91501.0,0.09867907]
[1767569187468,0.09296,91523.0,91513.0,0.010932]
[1767569187669,0.09296,91522.0,91513.0,0.010932]
[1767569188073,0.0261103,91524.0,91510.0,0.010932]
[1767569188266,0.09296,91524.0,91512.0,0.010932]
[1767569188462,0.09296,91524.0,91506.0,0.09867907]
[1767569188667,0.09296,91524.0,91515.0,0.010932]
[1767569189875,0.02624028,91529.0,91515.0,0.010932]
[1767569190078,0.02328509,91528.0,91508.0,0.12519164]
[1767569190276,0.02624028,91529.0,91513.0,0.010932]
[1767569190472,0.05000895,91528.0,91513.0,0.010932]
[1767569190680,0.02672659,91528.0,91513.0,0.010932]
[1767569191278,0.02328371,91527.0,91513.0,0.010932]
[1767569191480,0.02672659,91528.0,91513.0,0.010932]
[1767569191676,0.09180411,91532.0,91512.0,0.11773202]
[1767569191979,0.09296,91536.0,91522.0,0.010931]
[1767569192181,0.09749749,91537.0,91519.0,0.010931]
[1767569193783,0.00548438,91534.0,91519.0,0.010931]
[1767569193974,0.00548438,91533.0,91519.0,0.010931]
[1767569194772,0.00548438,91533.0,91512.0,0.02499815]
[1767569195883,0.00548438,91533.0,91514.0,0.02688199]
[1767569196271,0.00548438,91533.0,91519.0,0.010931]
[1767569199092,0.09615554,91533.0,91513.0,0.09831734]
[1767569199283,0.09471913,91530.0,91513.0,0.09831734]
[1767569199487,0.00538117,91532.0,91513.0,0.09831734]
[1767569199681,0.00538117,91532.0,91514.0,0.02688199]
[1767569199882,0.18363116,91538.0,91519.0,0.02688199]
[1767569200082,0.18363116,91538.0,91520.0,0.09471913]
[1767569200389,0.18363116,91538.0,91524.0,0.01093]
[1767569200782,0.18876027,91538.0,91524.0,0.01093]
[1767569201496,0.00511163,91537.0,91524.0,0.01093]
[1767569202489,0.00486046,91535.0,91521.0,0.004931]
[1767569204001,0.00486046,91535.0,91525.0,0.01093]
[1767569204198,0.09296,91538.0,91525.0,0.01093]
[1767569204392,0.09698767,91538.0,91525.0,0.01093]
[1767569206101,0.00357842,91537.0,91525.0,0.01093]
[1767569206398,0.00357842,91537.0,91518.0,0.02688199]
[1767569206704,0.00357842,91537.0,91522.0,0.010931]
[1767569207404,0.00108207,91531.0,91511.0,0.010932]
[1767569207605,0.00108207,91531.0,91511.0,0.13613133]
[1767569207806,0.00108207,91531.0,91512.0,0.02688199]
[1767569208005,0.00084431,91535.0,91514.0,0.02688199]
[1767569208305,0.00084431,91535.0,91515.0,0.02688199]
[1767569209102,0.00084431,91535.0,91515.0,0.12519933]
[1767569209502,0.00084431,91535.0,91516.0,0.02688199]
[1767569209709,0.00084431,91535.0,91524.0,0.01093]
[1767569210297,0.00084431,91535.0,91516.0,0.02688199]
[1767569210506,0.00084431,91535.0,91516.0,0.12519933]
[1767569211202,0.00084431,91535.0,91524.0,0.01093]
[1767569211406,0.09067116,91537.0,91517.0,0.12519933]
[1767569212309,0.09067116,91537.0,91526.0,0.01093]
[1767569213008,0.09067116,91537.0,91528.0,0.01093]
[1767569213405,0.0588558,91555.0,91523.0,0.12519933]
[1767569213605,0.09067116,91552.0,91530.0,0.12519933]
[1767569213807,0.11623899,91551.0,91532.0,0.02688199]
[1767569214001,0.02327899,91550.0,91532.0,0.02688199]
[1767569214210,0.11623899,91549.0,91532.0,0.02688199]
[1767569214409,0.02327899,91548.0,91537.0,0.010929]
[1767569214610,0.02327899,91547.0,91537.0,0.010929]
[1767569214815,0.09296,91549.0,91535.0,0.02688199]
[1767569216212,0.09296,91549.0,91538.0,0.010929]
[1767569217917,0.09296,91549.0,91534.0,0.09224634]
[1767569218315,0.09296,91549.0,91540.0,0.010929]
[1767569220810,0.09296,91549.0,91534.0,0.010929]
[1767569221017,0.09296,91549.0,91536.0,0.010929]
[1767569225909,0.09296,91549.0,91538.0,0.010929]
[1767569227925,0.00064963,91557.0,91536.0,0.11835871]
[1767569228217,0.1168423,91556.0,91536.0,0.11835871]
[1767569228421,0.09980206,91559.0,91547.0,0.010928]
[1767569228617,0.00064963,91559.0,91547.0,0.010928]
[1767569228818,0.09292,91561.0,91547.0,0.010928]
[1767569229018,0.02326963,91560.0,91547.0,0.010928]
[1767569229217,0.02326963,91559.0,91547.0,0.010928]
[1767569229517,0.09292,91561.0,91547.0,0.010928]
[1767569229711,0.02326743,91560.0,91547.0,0.010928]
[1767569229911,0.02326743,91559.0,91547.0,0.010928]
[1767569230111,0.09292,91561.0,91547.0,0.010928]
[1767569230311,0.02326553,91560.0,91547.0,0.010928]
[1767569230518,0.09292,91561.0,91547.0,0.010928]
[1767569230710,0.02326541,91560.0,91547.0,0.010928]
[1767569230907,0.09292,91561.0,91547.0,0.010928]
[1767569231123,0.02326541,91560.0,91547.0,0.010928]
[1767569231319,0.09292,91561.0,91547.0,0.010928]
[1767569232630,0.09292,91561.0,91551.0,0.010927]
[1767569232818,0.09292,91561.0,91548.0,0.010928]
[1767569233320,0.09292,91561.0,91544.0,0.11835871]
[1767569233821,0.09436706,91561.0,91544.0,0.09507314]
[1767569234223,0.09436706,91561.0,91548.0,0.010928]
[1767569234624,0.09292,91561.0,91550.0,0.010927]
[1767569236330,0.0935301,91561.0,91550.0,0.010927]
[1767569237935,6.773e-05,91560.0,91545.0,0.010928]
[1767569238123,6.773e-05,91558.0,91539.0,0.09507314]
[1767569238429,0.09915243,91561.0,91542.0,0.11835871]
[1767569238730,0.09922016,91561.0,91542.0,0.11835871]
[1767569239128,0.09922016,91561.0,91545.0,0.010928]
[1767569239326,0.09915243,91561.0,91545.0,0.010928]
[1767569241226,0.10247684,91561.0,91542.0,0.11428671]
[1767569242229,0.10247684,91561.0,91545.0,0.010928]
[1767569242827,0.0031948,91560.0,91545.0,0.010928]
[1767569243139,0.0031948,91564.0,91549.0,0.010928]
[1767569243319,0.02328314,91563.0,91549.0,0.010928]
[1767569243523,0.02328314,91562.0,91549.0,0.010928]
[1767569243825,0.0031948,91564.0,91549.0,0.010928]
[1767569244026,0.02328314,91563.0,91549.0,0.010928]
[1767569244331,0.02328314,91562.0,91549.0,0.010928]
[1767569244634,0.0031948,91564.0,91549.0,0.010928]
[1767569244833,0.0232855,91563.0,91549.0,0.010928]
[1767569245031,0.0232855,91562.0,91549.0,0.010928]
[1767569245333,0.0031948,91564.0,91549.0,0.010928]
[1767569245634,0.0232859,91563.0,91549.0,0.010928]
[1767569245837,0.0232859,91562.0,91549.0,0.010928]
[1767569246026,0.0031948,91564.0,91546.0,0.09507314]
[1767569246226,0.00223057,91573.0,91558.0,0.010926]
[1767569246542,0.00223057,91570.0,91550.0,0.09507314]
[1767569246923,0.00202428,91569.0,91552.0,0.010927]
[1767569247132,0.00202428,91569.0,91550.0,0.09507314]
[1767569247527,0.01294928,91568.0,91550.0,0.09507314]
[1767569248835,0.01294928,91568.0,91550.0,0.08007314]
[1767569249038,0.09915243,91571.0,91547.0,0.09292]
[1767569249039,0.010926,91564.0,91547.0,0.09292]
[1767569250233,0.01332072,91564.0,91547.0,0.09292]
[1767569250534,0.00266281,91554.0,91538.0,0.09292]
[1767569250729,0.00266281,91559.0,91543.0,0.010928]
[1767569251033,0.103846,91564.0,91546.0,0.02399252]
[1767569251220,0.09292,91564.0,91547.0,0.010928]
[1767569251425,0.0806178,91570.0,91538.0,0.09292]
[1767569251426,0.09292,91563.0,91551.0,0.010927]
[1767569251632,0.09292,91563.0,91551.0,0.02399252]
[1767569251837,0.09292,91563.0,91550.0,0.07780677]
[1767569252138,0.09292,91563.0,91547.0,0.010928]
[1767569253133,0.09292,91563.0,91546.0,0.10179929]
[1767569253439,0.09292,91563.0,91549.0,0.10179929]
[1767569253937,0.09292,91563.0,91549.0,0.010928]
[1767569254138,0.09292,91563.0,91546.0,0.03492052]
[1767569254339,0.09478865,91563.0,91546.0,0.010928]
[1767569256540,0.09478865,91563.0,91545.0,0.06773477]
[1767569257040,0.09292,91563.0,91546.0,0.02451319]
[1767569257349,0.00106328,91574.0,91553.0,0.02451319]
[1767569257539,0.09292,91573.0,91563.0,0.010926]
[1767569257835,0.00106328,91580.0,91563.0,0.010926]
[1767569258037,0.09292,91579.0,91563.0,0.010926]
[1767569258234,0.02309298,91578.0,91563.0,0.010926]
[1767569258443,0.02309298,91577.0,91563.0,0.010926]
[1767569258735,0.00126289,91575.0,91555.0,0.02451319]
[1767569258937,0.02309298,91574.0,91556.0,0.09817943]
[1767569259129,0.00126289,91575.0,91557.0,0.02451319]
[1767569259326,0.0230902,91574.0,91557.0,0.02451319]
[1767569259530,0.09292,91573.0,91557.0,0.02451319]
[1767569260647,0.09292,91573.0,91563.0,0.010926]
[1767569261338,0.09292,91573.0,91559.0,0.010926]
[1767569262237,0.09292,91573.0,91561.0,0.010926]
[1767569263837,0.0005915,91572.0,91558.0,0.010926]
[1767569264031,0.0005915,91567.0,91554.0,0.010927]
[1767569264237,0.0005915,91567.0,91546.0,0.09410643]
[1767569264546,0.0005915,91567.0,91547.0,0.07366624]
[1767569265046,0.00448016,91570.0,91549.0,0.07366624]
[1767569265246,0.16807857,91573.0,91552.0,0.07366624]
[1767569265447,0.17255873,91573.0,91552.0,0.07366624]
[1767569265644,0.00448016,91572.0,91552.0,0.07366624]
[1767569266145,0.004718,91571.0,91554.0,0.010927]
[1767569266741,0.01543302,91569.0,91552.0,0.07366624]
[1767569266940,0.00450802,91565.0,91551.0,0.010927]
[1767569267341,0.00450802,91565.0,91548.0,0.010928]
[1767569267645,0.00450802,91563.0,91548.0,0.010928]
[1767569267846,0.09723281,91562.0,91548.0,0.010928]
[1767569268533,0.09461744,91560.0,91548.0,0.010928]
[1767569269148,0.09461744,91560.0,91543.0,0.010928]
[1767569269342,0.09461744,91560.0,91542.0,0.0830866]
[1767569269343,0.00415029,91559.0,91540.0,0.05857341]